[Event "*** Titled Tuesday Blitz"]
[Site "Chess.com"]
[Date "2021.04.06"]
[Round "10"]
[White "maximnovik"]
[Black "crazy_but_lazy"]
[Result "1-0"]
[WhiteElo "2567"]
[BlackElo "2434"]
[TimeControl "180+1"]
[EndTime "11:55:11 PDT"]
[Termination "maximnovik won on time"]

1. d4 {[%clk 0:03:00.9]} 1... d5 {[%clk 0:02:57.7]} 2. c4 {[%clk 0:03:00.3]}
2... Nc6 {[%clk 0:02:57.7]} 3. cxd5 {[%clk 0:02:59.2]} 3... Qxd5 {[%clk
0:02:56]} 4. e3 {[%clk 0:02:59.4]} 4... e5 {[%clk 0:02:53.7]} 5. Nc3 {[%clk
0:02:59.3]} 5... Bb4 {[%clk 0:02:53.5]} 6. Bd2 {[%clk 0:02:59.8]} 6... Bxc3
{[%clk 0:02:51.6]} 7. Bxc3 {[%clk 0:03:00.2]} 7... Nf6 {[%clk 0:02:47.7]} 8.
dxe5 {[%clk 0:02:57.9]} 8... Qxd1+ {[%clk 0:02:32.6]} 9. Rxd1 {[%clk 0:02:56.5]}
9... Ne4 {[%clk 0:02:33.1]} 10. Bb5 {[%clk 0:02:52.1]} 10... Nxc3 {[%clk
0:02:31.2]} 11. Bxc6+ {[%clk 0:02:49.2]} 11... bxc6 {[%clk 0:02:31.5]} 12. bxc3
{[%clk 0:02:49.7]} 12... Be6 {[%clk 0:02:31.1]} 13. Nf3 {[%clk 0:02:37.1]} 13...
Bxa2 {[%clk 0:02:27.5]} 14. Ra1 {[%clk 0:02:34.6]} 14... Bc4 {[%clk 0:02:01.4]}
15. Nd2 {[%clk 0:02:31.4]} 15... Bd3 {[%clk 0:01:56.8]} 16. Ra5 {[%clk
0:02:23.9]} 16... Ke7 {[%clk 0:01:51.4]} 17. f3 {[%clk 0:02:21.6]} 17... Rhb8
{[%clk 0:01:48.8]} 18. Kf2 {[%clk 0:02:12.4]} 18... Rb2 {[%clk 0:01:39.5]} 19.
Rd1 {[%clk 0:02:12.5]} 19... Bc2 {[%clk 0:01:05.8]} 20. Rc1 {[%clk 0:02:11.1]}
20... Bf5 {[%clk 0:00:58.9]} 21. Ke1 {[%clk 0:02:06.9]} 21... Rb5 {[%clk
0:00:50]} 22. Rca1 {[%clk 0:02:04.3]} 22... Rxa5 {[%clk 0:00:39.6]} 23. Rxa5
{[%clk 0:02:03.2]} 23... Kd7 {[%clk 0:00:36.2]} 24. Nb3 {[%clk 0:02:02.5]} 24...
Ke7 {[%clk 0:00:10.5]} 25. e4 {[%clk 0:02:01.6]} 25... Be6 {[%clk 0:00:10.1]}
26. Nc5 {[%clk 0:02:02]} 26... Bc4 {[%clk 0:00:10.5]} 27. Kd2 {[%clk 0:01:57.2]}
27... f6 {[%clk 0:00:10.3]} 28. exf6+ {[%clk 0:01:55.4]} 28... gxf6 {[%clk
0:00:11.2]} 29. Ke3 {[%clk 0:01:55.8]} 29... a6 {[%clk 0:00:06.5]} 30. Ra4
{[%clk 0:01:55.4]} 30... Bf1 {[%clk 0:00:06.6]} 31. Kf2 {[%clk 0:01:44.9]} 31...
Bb5 {[%clk 0:00:06]} 32. Rd4 {[%clk 0:01:42.7]} 32... a5 {[%clk 0:00:05.5]} 33.
c4 {[%clk 0:01:42.3]} 33... Ba6 {[%clk 0:00:03.9]} 34. Ke3 {[%clk 0:01:41.1]}
34... Bc8 {[%clk 0:00:01.7]} 35. Rd3 {[%clk 0:01:39]} 35... Be6 {[%clk
0:00:01.9]} 36. Rc3 {[%clk 0:01:36.4]} 36... Bf7 {[%clk 0:00:02]} 37. f4 {[%clk
0:01:32.6]} 37... h5 {[%clk 0:00:01.3]} 38. f5 {[%clk 0:01:29.7]} 38... Kd6
{[%clk 0:00:01.7]} 39. Kd4 {[%clk 0:01:28.5]} 1-0

[Event "*** Titled Tuesday Blitz"]
[Site "Chess.com"]
[Date "2021.04.06"]
[Round "10"]
[White "MateusViageiro"]
[Black "ehrenfeld"]
[Result "0-1"]
[WhiteElo "2360"]
[BlackElo "2528"]
[TimeControl "180+1"]
[EndTime "11:55:17 PDT"]
[Termination "ehrenfeld won by resignation"]

1. Nf3 {[%clk 0:03:00.9]} 1... Nf6 {[%clk 0:02:59.1]} 2. g3 {[%clk 0:02:59.9]}
2... d5 {[%clk 0:02:58.5]} 3. Bg2 {[%clk 0:03:00.3]} 3... c6 {[%clk 0:02:58.8]}
4. O-O {[%clk 0:03:00.8]} 4... Bg4 {[%clk 0:02:58.8]} 5. Ne5 {[%clk 0:03:00]}
5... h5 {[%clk 0:02:55]} 6. h3 {[%clk 0:02:55.7]} 6... Bf5 {[%clk 0:02:53.6]} 7.
d3 {[%clk 0:02:55.1]} 7... Nbd7 {[%clk 0:02:53.5]} 8. Nxd7 {[%clk 0:02:54.1]}
8... Qxd7 {[%clk 0:02:53.3]} 9. Nd2 {[%clk 0:02:54.5]} 9... Bxh3 {[%clk
0:02:52.1]} 10. e4 {[%clk 0:02:53.5]} 10... h4 {[%clk 0:02:45.6]} 11. Qf3 {[%clk
0:02:45.2]} 11... hxg3 {[%clk 0:02:35.9]} 12. fxg3 {[%clk 0:02:34.9]} 12... Bxg2
{[%clk 0:02:28.2]} 13. Qxg2 {[%clk 0:02:33.9]} 13... e6 {[%clk 0:02:28.1]} 14.
c3 {[%clk 0:02:25.9]} 14... dxe4 {[%clk 0:02:25]} 15. d4 {[%clk 0:02:25.5]}
15... Qd5 {[%clk 0:02:20.8]} 16. Rxf6 {[%clk 0:02:21.9]} 16... gxf6 {[%clk
0:02:18]} 17. Nxe4 {[%clk 0:02:20.9]} 17... Be7 {[%clk 0:02:16.3]} 18. Bf4
{[%clk 0:02:18.4]} 18... f5 {[%clk 0:02:13.3]} 19. Be5 {[%clk 0:02:08.4]} 19...
Rh7 {[%clk 0:02:00.9]} 20. Nf6+ {[%clk 0:02:05.9]} 20... Bxf6 {[%clk 0:02:00.3]}
21. Bxf6 {[%clk 0:02:06.5]} 21... Qxg2+ {[%clk 0:01:58.8]} 22. Kxg2 {[%clk
0:02:07.4]} 22... Kd7 {[%clk 0:01:53.2]} 23. c4 {[%clk 0:01:59]} 23... Rg8
{[%clk 0:01:51.8]} 24. Rd1 {[%clk 0:01:53.2]} 24... Rg6 {[%clk 0:01:51.3]} 25.
Be5 {[%clk 0:01:52.9]} 25... f6 {[%clk 0:01:51]} 26. Bf4 {[%clk 0:01:52.5]}
26... Ke7 {[%clk 0:01:38]} 27. Re1 {[%clk 0:01:49.3]} 27... Kf7 {[%clk
0:01:37.2]} 28. b4 {[%clk 0:01:43.6]} 28... Rg8 {[%clk 0:01:36.4]} 29. a4 {[%clk
0:01:36.4]} 29... Rd8 {[%clk 0:01:36.3]} 30. Be3 {[%clk 0:01:35.1]} 30... e5
{[%clk 0:01:28.4]} 31. dxe5 {[%clk 0:01:34.1]} 31... fxe5 {[%clk 0:01:28.4]} 32.
Bxa7 {[%clk 0:01:33.1]} 32... Rd2+ {[%clk 0:01:26.8]} 33. Bf2 {[%clk 0:01:27.3]}
33... Kf6 {[%clk 0:01:19.9]} 34. b5 {[%clk 0:01:14.5]} 34... Ra2 {[%clk
0:01:05.7]} 35. Rd1 {[%clk 0:01:10]} 35... Ke6 {[%clk 0:01:04.8]} 36. c5 {[%clk
0:01:07.3]} 36... Rd7 {[%clk 0:01:02.2]} 37. Rxd7 {[%clk 0:00:54]} 37... Kxd7
{[%clk 0:01:01.2]} 38. bxc6+ {[%clk 0:00:54.1]} 38... Kxc6 {[%clk 0:00:59.6]}
39. Kf3 {[%clk 0:00:52.3]} 39... Rxa4 {[%clk 0:00:58.7]} 40. Be3 {[%clk
0:00:50.6]} 40... Kd5 {[%clk 0:00:58]} 41. Bf2 {[%clk 0:00:48.6]} 41... Ra3+
{[%clk 0:00:57.7]} 42. Kg2 {[%clk 0:00:48.1]} 42... Ke4 {[%clk 0:00:57.5]} 0-1

[Event "*** Titled Tuesday Blitz"]
[Site "Chess.com"]
[Date "2021.04.06"]
[Round "10"]
[White "evgchess5"]
[Black "Margency"]
[Result "1-0"]
[WhiteElo "2910"]
[BlackElo "2723"]
[TimeControl "180+1"]
[EndTime "11:55:19 PDT"]
[Termination "evgchess5 won by resignation"]

1. e4 {[%clk 0:03:00.3]} 1... c5 {[%clk 0:02:58.3]} 2. Nf3 {[%clk 0:02:59.5]}
2... d6 {[%clk 0:02:58.9]} 3. d4 {[%clk 0:02:59.6]} 3... cxd4 {[%clk 0:02:59.8]}
4. Qxd4 {[%clk 0:02:59.7]} 4... Nc6 {[%clk 0:02:59.6]} 5. Bb5 {[%clk 0:02:58.4]}
5... Bd7 {[%clk 0:02:59.8]} 6. Qd3 {[%clk 0:02:58.5]} 6... Nf6 {[%clk
0:02:59.4]} 7. c4 {[%clk 0:02:58.3]} 7... g6 {[%clk 0:02:57.9]} 8. Nc3 {[%clk
0:02:58.2]} 8... Bg7 {[%clk 0:02:57.8]} 9. h3 {[%clk 0:02:58.4]} 9... O-O {[%clk
0:02:58.1]} 10. O-O {[%clk 0:02:58.8]} 10... a6 {[%clk 0:02:57.8]} 11. Bxc6
{[%clk 0:02:58.8]} 11... Bxc6 {[%clk 0:02:58]} 12. Nd4 {[%clk 0:02:59.2]} 12...
Rc8 {[%clk 0:02:58.1]} 13. Be3 {[%clk 0:02:59.2]} 13... Qa5 {[%clk 0:02:56.4]}
14. Rac1 {[%clk 0:02:57.9]} 14... Rfe8 {[%clk 0:02:54.6]} 15. Rfd1 {[%clk
0:02:56.1]} 15... Nd7 {[%clk 0:02:52.7]} 16. b3 {[%clk 0:02:55.5]} 16... Nc5
{[%clk 0:02:47.5]} 17. Qd2 {[%clk 0:02:55.4]} 17... Qd8 {[%clk 0:02:42.1]} 18.
f3 {[%clk 0:02:54.1]} 18... Nd7 {[%clk 0:02:31.1]} 19. a4 {[%clk 0:02:51.7]}
19... b6 {[%clk 0:02:27.3]} 20. Bh6 {[%clk 0:02:44.5]} 20... Bxh6 {[%clk
0:02:05]} 21. Qxh6 {[%clk 0:02:42.6]} 21... Bb7 {[%clk 0:02:05.4]} 22. Nd5
{[%clk 0:02:36.3]} 22... e6 {[%clk 0:02:03.5]} 23. Ne3 {[%clk 0:02:33.7]} 23...
Qe7 {[%clk 0:01:56.9]} 24. Rc2 {[%clk 0:02:24.7]} 24... Nc5 {[%clk 0:01:48.4]}
25. Rc3 {[%clk 0:02:17.7]} 25... Rcd8 {[%clk 0:01:38.9]} 26. Ng4 {[%clk
0:02:04.1]} 26... f5 {[%clk 0:01:35.2]} 27. exf5 {[%clk 0:02:03.4]} 27... exf5
{[%clk 0:01:33.7]} 28. Nxf5 {[%clk 0:01:51.5]} 28... gxf5 {[%clk 0:01:30.1]} 29.
Nf6+ {[%clk 0:01:48.3]} 29... Kh8 {[%clk 0:01:24.9]} 30. Nxe8 {[%clk 0:01:47.8]}
30... Rxe8 {[%clk 0:01:01.8]} 31. Qxd6 {[%clk 0:01:46.8]} 31... Qg5 {[%clk
0:00:52.6]} 32. Qd2 {[%clk 0:01:21.4]} 32... f4 {[%clk 0:00:49]} 33. b4 {[%clk
0:01:04.8]} 33... Nxa4 {[%clk 0:00:40.3]} 34. Rd3 {[%clk 0:00:57.7]} 34... Rg8
{[%clk 0:00:37.7]} 35. Rd7 {[%clk 0:00:51]} 35... Bc6 {[%clk 0:00:33.1]} 36.
Qd4+ {[%clk 0:00:47]} 36... Rg7 {[%clk 0:00:32]} 37. Rd8+ {[%clk 0:00:45.9]} 1-0

[Event "*** Titled Tuesday Blitz"]
[Site "Chess.com"]
[Date "2021.04.06"]
[Round "10"]
[White "TheMagicMaik"]
[Black "bratkoo"]
[Result "0-1"]
[WhiteElo "2425"]
[BlackElo "2564"]
[TimeControl "180+1"]
[EndTime "11:55:19 PDT"]
[Termination "bratkoo won by resignation"]

1. e4 {[%clk 0:03:00.9]} 1... g6 {[%clk 0:02:59.8]} 2. d4 {[%clk 0:03:00.5]}
2... Bg7 {[%clk 0:02:58]} 3. Nc3 {[%clk 0:03:01]} 3... d6 {[%clk 0:02:58.2]} 4.
Nf3 {[%clk 0:02:59.7]} 4... a6 {[%clk 0:02:58.6]} 5. a4 {[%clk 0:02:59.2]} 5...
Nd7 {[%clk 0:02:58.7]} 6. h4 {[%clk 0:02:56.7]} 6... Ngf6 {[%clk 0:02:58.6]} 7.
e5 {[%clk 0:02:52.5]} 7... dxe5 {[%clk 0:02:57.3]} 8. dxe5 {[%clk 0:02:53.4]}
8... Ng4 {[%clk 0:02:57.5]} 9. e6 {[%clk 0:02:52]} 9... fxe6 {[%clk 0:02:57.8]}
10. Ng5 {[%clk 0:02:44.3]} 10... Nde5 {[%clk 0:02:57.9]} 11. Qxd8+ {[%clk
0:02:30.2]} 11... Kxd8 {[%clk 0:02:58.8]} 12. Bf4 {[%clk 0:01:50.6]} 12... h6
{[%clk 0:02:58.6]} 13. Bxe5 {[%clk 0:01:27.3]} 13... Nxe5 {[%clk 0:02:57.7]} 14.
O-O-O+ {[%clk 0:01:26.9]} 14... Ke8 {[%clk 0:02:58]} 15. Nge4 {[%clk 0:01:21.3]}
15... Rf8 {[%clk 0:02:45.4]} 16. Be2 {[%clk 0:01:18.5]} 16... Bd7 {[%clk
0:02:43.5]} 17. Rhe1 {[%clk 0:01:14.9]} 17... Bc6 {[%clk 0:02:41.5]} 18. f3
{[%clk 0:01:12.3]} 18... Rd8 {[%clk 0:02:40.6]} 19. Nc5 {[%clk 0:01:09.4]} 19...
Rxd1+ {[%clk 0:02:38.8]} 20. Bxd1 {[%clk 0:01:03.3]} 20... Kf7 {[%clk
0:02:11.8]} 21. f4 {[%clk 0:00:59.5]} 21... Nc4 {[%clk 0:02:11.1]} 22. Nxe6
{[%clk 0:00:54.7]} 22... Bxc3 {[%clk 0:02:10.5]} 23. bxc3 {[%clk 0:00:49]} 23...
Rc8 {[%clk 0:02:10.5]} 24. Bg4 {[%clk 0:00:40.7]} 24... Kf6 {[%clk 0:01:55.6]}
25. Nd4 {[%clk 0:00:35.4]} 25... Re8 {[%clk 0:01:44.1]} 26. Re6+ {[%clk
0:00:32.8]} 26... Kg7 {[%clk 0:01:43.9]} 27. Nxc6 {[%clk 0:00:33.3]} 27... bxc6
{[%clk 0:01:43.6]} 28. Rxc6 {[%clk 0:00:34.2]} 28... Nb6 {[%clk 0:01:42.5]} 29.
a5 {[%clk 0:00:30.6]} 29... Nd5 {[%clk 0:01:42.5]} 30. Bf3 {[%clk 0:00:27.9]}
30... Nxf4 {[%clk 0:01:40.4]} 31. Rxa6 {[%clk 0:00:25.5]} 31... e5 {[%clk
0:01:40.8]} 32. Rc6 {[%clk 0:00:20.6]} 32... e4 {[%clk 0:01:40.8]} 33. Rxc7+
{[%clk 0:00:20.8]} 33... Kf6 {[%clk 0:01:41.1]} 34. Bg4 {[%clk 0:00:18.6]} 34...
h5 {[%clk 0:01:40.8]} 35. Bd7 {[%clk 0:00:17.9]} 35... Re5 {[%clk 0:01:39.3]}
36. a6 {[%clk 0:00:16.3]} 36... e3 {[%clk 0:01:39.7]} 37. Rc4 {[%clk 0:00:07.1]}
37... e2 {[%clk 0:01:34.9]} 38. Rxf4+ {[%clk 0:00:06.9]} 38... Ke7 {[%clk
0:01:35.3]} 39. a7 {[%clk 0:00:02.2]} 39... e1=Q+ {[%clk 0:01:35.2]} 40. Kb2
{[%clk 0:00:03.1]} 40... Ra5 {[%clk 0:01:35.2]} 41. Bc6 {[%clk 0:00:02.2]} 41...
Qa1+ {[%clk 0:01:34.7]} 42. Kb3 {[%clk 0:00:02.4]} 42... Qa3+ {[%clk 0:01:33.3]}
43. Kc4 {[%clk 0:00:02.6]} 43... Qc5+ {[%clk 0:01:33.4]} 44. Kd3 {[%clk
0:00:02.6]} 44... Qxc6 {[%clk 0:01:33.7]} 45. Re4+ {[%clk 0:00:03.1]} 45...
Qxe4+ {[%clk 0:01:33.8]} 46. Kxe4 {[%clk 0:00:03.4]} 46... Rxa7 {[%clk
0:01:34.7]} 47. c4 {[%clk 0:00:04.3]} 47... Rd7 {[%clk 0:01:34.4]} 0-1

[Event "*** Titled Tuesday Blitz"]
[Site "Chess.com"]
[Date "2021.04.06"]
[Round "10"]
[White "gisela_roque"]
[Black "JiiHart"]
[Result "1/2-1/2"]
[WhiteElo "1753"]
[BlackElo "2028"]
[TimeControl "180+1"]
[EndTime "11:55:19 PDT"]
[Termination "Game drawn by repetition"]

1. c4 {[%clk 0:03:00.9]} 1... e5 {[%clk 0:02:59.3]} 2. Nc3 {[%clk 0:03:00.3]}
2... Nf6 {[%clk 0:02:59.3]} 3. Nf3 {[%clk 0:03:00.3]} 3... Nc6 {[%clk
0:02:58.1]} 4. g3 {[%clk 0:03:00.4]} 4... Be7 {[%clk 0:02:58]} 5. Bg2 {[%clk
0:03:00]} 5... O-O {[%clk 0:02:58]} 6. O-O {[%clk 0:02:59.4]} 6... d5 {[%clk
0:02:56.4]} 7. cxd5 {[%clk 0:02:58.6]} 7... Nxd5 {[%clk 0:02:56.3]} 8. a3 {[%clk
0:02:57.8]} 8... Be6 {[%clk 0:02:51]} 9. d3 {[%clk 0:02:54.1]} 9... Nxc3 {[%clk
0:02:16.8]} 10. bxc3 {[%clk 0:02:52.6]} 10... Qd7 {[%clk 0:02:16.6]} 11. Re1
{[%clk 0:02:52]} 11... Rfd8 {[%clk 0:02:08.5]} 12. Rb1 {[%clk 0:02:51.4]} 12...
Rab8 {[%clk 0:02:07.8]} 13. Qa4 {[%clk 0:02:42.9]} 13... a6 {[%clk 0:01:37.3]}
14. Ng5 {[%clk 0:02:36.4]} 14... Bd5 {[%clk 0:01:22.4]} 15. e4 {[%clk 0:02:22]}
15... Be6 {[%clk 0:01:19.6]} 16. Nxe6 {[%clk 0:02:18.8]} 16... Qxe6 {[%clk
0:01:16]} 17. Rd1 {[%clk 0:02:11.1]} 17... Qa2 {[%clk 0:00:49.8]} 18. Be3 {[%clk
0:02:02.7]} 18... Rxd3 {[%clk 0:00:39.1]} 19. Rxd3 {[%clk 0:01:54.4]} 19...
Qxb1+ {[%clk 0:00:38.9]} 20. Rd1 {[%clk 0:01:54.7]} 20... Qb5 {[%clk 0:00:37]}
21. Qxb5 {[%clk 0:01:48]} 21... axb5 {[%clk 0:00:37.9]} 22. Bf1 {[%clk
0:01:46.2]} 22... Bxa3 {[%clk 0:00:35.9]} 23. Bxb5 {[%clk 0:01:45.1]} 23... Ne7
{[%clk 0:00:31.9]} 24. Rd7 {[%clk 0:01:44.2]} 24... Bd6 {[%clk 0:00:29.9]} 25.
Bb6 {[%clk 0:01:35.7]} 25... Rc8 {[%clk 0:00:27.4]} 26. c4 {[%clk 0:01:34]}
26... cxb6 {[%clk 0:00:20.3]} 27. Rxd6 {[%clk 0:01:33.5]} 27... Nc6 {[%clk
0:00:20.1]} 28. Rd7 {[%clk 0:01:32]} 28... Kf8 {[%clk 0:00:19.1]} 29. Rxb7
{[%clk 0:01:31]} 29... Na5 {[%clk 0:00:19.2]} 30. Rxb6 {[%clk 0:01:30.2]} 30...
Nxc4 {[%clk 0:00:19.5]} 31. Bxc4 {[%clk 0:01:25.3]} 31... Rxc4 {[%clk
0:00:20.4]} 32. f3 {[%clk 0:01:22.2]} 32... Rc2 {[%clk 0:00:20.4]} 33. Rb5
{[%clk 0:01:18.5]} 33... f6 {[%clk 0:00:20.2]} 34. Rb7 {[%clk 0:01:18.3]} 34...
h6 {[%clk 0:00:18.7]} 35. Rd7 {[%clk 0:01:17.5]} 35... Kg8 {[%clk 0:00:18.7]}
36. Re7 {[%clk 0:01:16.2]} 36... Kh7 {[%clk 0:00:18.7]} 37. Rd7 {[%clk
0:01:14.5]} 37... Kg6 {[%clk 0:00:18.9]} 38. Rb7 {[%clk 0:01:12.5]} 38... Rd2
{[%clk 0:00:18.5]} 39. Re7 {[%clk 0:01:11]} 39... Rc2 {[%clk 0:00:18.4]} 40. Rd7
{[%clk 0:01:11]} 40... Rb2 {[%clk 0:00:18.2]} 41. Re7 {[%clk 0:01:11]} 41... Rc2
{[%clk 0:00:18.3]} 42. Rd7 {[%clk 0:01:11.1]} 42... Rb2 {[%clk 0:00:18.6]} 43.
Re7 {[%clk 0:01:11.2]} 43... Rc2 {[%clk 0:00:18.9]} 1/2-1/2

[Event "*** Titled Tuesday Blitz"]
[Site "Chess.com"]
[Date "2021.04.06"]
[Round "10"]
[White "Omk124"]
[Black "Oglob71"]
[Result "1-0"]
[WhiteElo "2571"]
[BlackElo "2375"]
[TimeControl "180+1"]
[EndTime "11:55:23 PDT"]
[Termination "Omk124 won by resignation"]

1. e4 {[%clk 0:03:00.9]} 1... c5 {[%clk 0:02:59]} 2. Nf3 {[%clk 0:03:01.3]} 2...
Nc6 {[%clk 0:02:58.5]} 3. d4 {[%clk 0:03:01.6]} 3... cxd4 {[%clk 0:02:58.9]} 4.
Nxd4 {[%clk 0:03:02.5]} 4... Nf6 {[%clk 0:02:58.9]} 5. Nc3 {[%clk 0:03:02.5]}
5... d6 {[%clk 0:02:59.4]} 6. Be2 {[%clk 0:03:00.6]} 6... e5 {[%clk 0:02:58.6]}
7. Nb3 {[%clk 0:03:00.4]} 7... Be7 {[%clk 0:02:59]} 8. Be3 {[%clk 0:03:00]} 8...
O-O {[%clk 0:02:59.2]} 9. O-O {[%clk 0:03:00]} 9... a5 {[%clk 0:02:59.5]} 10. a4
{[%clk 0:02:59.7]} 10... Be6 {[%clk 0:02:58.8]} 11. f3 {[%clk 0:02:58.8]} 11...
Nb4 {[%clk 0:02:57.3]} 12. Qd2 {[%clk 0:02:52.6]} 12... d5 {[%clk 0:02:56.6]}
13. exd5 {[%clk 0:02:52.9]} 13... Nfxd5 {[%clk 0:02:56.7]} 14. Nxd5 {[%clk
0:02:52.9]} 14... Nxd5 {[%clk 0:02:56.6]} 15. Bf2 {[%clk 0:02:52]} 15... Nb4
{[%clk 0:02:55.2]} 16. Rfd1 {[%clk 0:02:33.4]} 16... Qxd2 {[%clk 0:02:53.5]} 17.
Rxd2 {[%clk 0:02:32.5]} 17... Nxc2 {[%clk 0:02:53.9]} 18. Rxc2 {[%clk
0:02:32.2]} 18... Bxb3 {[%clk 0:02:53.8]} 19. Rc7 {[%clk 0:02:32.9]} 19... Bb4
{[%clk 0:02:53.5]} 20. Rxb7 {[%clk 0:02:31.8]} 20... Rac8 {[%clk 0:02:53.3]} 21.
Be1 {[%clk 0:02:26.4]} 21... Bd5 {[%clk 0:02:40.8]} 22. Bxb4 {[%clk 0:02:25.6]}
22... Bxb7 {[%clk 0:02:40.6]} 23. Bxf8 {[%clk 0:02:25.6]} 23... Kxf8 {[%clk
0:02:40.9]} 24. b3 {[%clk 0:02:23.9]} 24... Rc2 {[%clk 0:02:40]} 25. Bc4 {[%clk
0:02:23.8]} 25... Ke7 {[%clk 0:02:39.8]} 26. Re1 {[%clk 0:02:22.6]} 26... f6
{[%clk 0:02:39.9]} 27. Rd1 {[%clk 0:02:19.8]} 27... Bc6 {[%clk 0:02:38.3]} 28.
Kf1 {[%clk 0:02:19.2]} 28... h5 {[%clk 0:02:30.5]} 29. h4 {[%clk 0:02:19]} 29...
Rc3 {[%clk 0:02:24.1]} 30. Rd2 {[%clk 0:02:10.9]} 30... Bxa4 {[%clk 0:02:23.5]}
31. Ra2 {[%clk 0:01:59.7]} 31... Bxb3 {[%clk 0:02:22.6]} 32. Bxb3 {[%clk
0:02:00.2]} 32... Rxb3 {[%clk 0:02:23]} 33. Rxa5 {[%clk 0:02:01.1]} 33... Kf7
{[%clk 0:02:22.4]} 34. Kf2 {[%clk 0:02:00.6]} 34... Kg6 {[%clk 0:02:21.8]} 35.
Ra4 {[%clk 0:02:00.1]} 35... Kf5 {[%clk 0:02:20.3]} 36. Kg3 {[%clk 0:01:58]}
36... Rd3 {[%clk 0:02:18.8]} 37. Kf2 {[%clk 0:01:58.1]} 37... Rd4 {[%clk
0:02:17.8]} 38. Ra7 {[%clk 0:01:53.9]} 38... g6 {[%clk 0:02:17.7]} 39. g3 {[%clk
0:01:54]} 39... Rd2+ {[%clk 0:02:16.4]} 40. Ke3 {[%clk 0:01:53.9]} 40... Rg2
{[%clk 0:02:16]} 41. Ra4 {[%clk 0:01:45.2]} 41... Rxg3 {[%clk 0:02:15.2]} 42.
Kf2 {[%clk 0:01:45.6]} 42... Rh3 {[%clk 0:01:42.4]} 43. Kg2 {[%clk 0:01:45.2]}
43... Rxh4 {[%clk 0:01:40.5]} 44. Rxh4 {[%clk 0:01:44.9]} 44... Kg5 {[%clk
0:01:40.7]} 45. Ra4 {[%clk 0:01:44.2]} 45... Kf5 {[%clk 0:01:36.3]} 46. Kg3
{[%clk 0:01:44.6]} 46... g5 {[%clk 0:01:35.7]} 47. Kh3 {[%clk 0:01:43.2]} 47...
Kg6 {[%clk 0:01:32.7]} 48. Ra8 {[%clk 0:01:41.7]} 48... Kf5 {[%clk 0:01:27.7]}
49. Rh8 {[%clk 0:01:40.7]} 49... Kg6 {[%clk 0:01:27.2]} 50. Kg3 {[%clk
0:01:38.9]} 50... f5 {[%clk 0:01:26.9]} 51. Re8 {[%clk 0:01:36.4]} 51... Kf6
{[%clk 0:01:25.5]} 52. Rf8+ {[%clk 0:01:35.7]} 52... Kg6 {[%clk 0:01:24.7]} 53.
Kf2 {[%clk 0:01:36.3]} 53... h4 {[%clk 0:01:24.2]} 54. Ke2 {[%clk 0:01:34.4]}
54... g4 {[%clk 0:01:18.9]} 55. fxg4 {[%clk 0:01:34.2]} 55... fxg4 {[%clk
0:01:19.4]} 56. Ke3 {[%clk 0:01:31.7]} 56... Kg5 {[%clk 0:01:18.9]} 57. Kf2
{[%clk 0:01:31.9]} 57... e4 {[%clk 0:01:17.2]} 58. Kg2 {[%clk 0:01:31.9]} 58...
e3 {[%clk 0:01:16.3]} 59. Kh2 {[%clk 0:01:26.7]} 59... e2 {[%clk 0:01:12.9]} 60.
Re8 {[%clk 0:01:26.7]} 60... Kf4 {[%clk 0:01:11.5]} 61. Rxe2 {[%clk 0:01:26.5]}
61... Kf3 {[%clk 0:01:11.9]} 62. Ra2 {[%clk 0:01:26.8]} 62... h3 {[%clk
0:01:08.2]} 63. Ra3+ {[%clk 0:01:26.9]} 63... Kf4 {[%clk 0:01:07.2]} 64. Rb3
{[%clk 0:01:24.5]} 64... Kf5 {[%clk 0:01:02.7]} 65. Kg3 {[%clk 0:01:25.1]} 1-0

[Event "*** Titled Tuesday Blitz"]
[Site "Chess.com"]
[Date "2021.04.06"]
[Round "10"]
[White "MasterMK73"]
[Black "woodhy"]
[Result "0-1"]
[WhiteElo "2288"]
[BlackElo "2427"]
[TimeControl "180+1"]
[EndTime "11:55:28 PDT"]
[Termination "woodhy won on time"]

1. e4 {[%clk 0:03:00.9]} 1... e6 {[%clk 0:03:00.9]} 2. d4 {[%clk 0:02:59.8]}
2... d5 {[%clk 0:03:01.8]} 3. Nd2 {[%clk 0:02:59.2]} 3... c5 {[%clk 0:03:01]} 4.
dxc5 {[%clk 0:02:47.8]} 4... Bxc5 {[%clk 0:02:59.8]} 5. Bd3 {[%clk 0:02:45.9]}
5... Nc6 {[%clk 0:02:59.6]} 6. Ngf3 {[%clk 0:02:43]} 6... Nf6 {[%clk 0:02:59.2]}
7. O-O {[%clk 0:02:30.8]} 7... O-O {[%clk 0:02:26.5]} 8. e5 {[%clk 0:02:16.4]}
8... Ng4 {[%clk 0:02:25.7]} 9. Qe2 {[%clk 0:02:03.9]} 9... Qb6 {[%clk
0:02:19.5]} 10. Nb3 {[%clk 0:01:56.2]} 10... Bxf2+ {[%clk 0:02:17.7]} 11. Rxf2
{[%clk 0:01:45.9]} 11... Qxf2+ {[%clk 0:02:18.6]} 12. Qxf2 {[%clk 0:01:45.2]}
12... Nxf2 {[%clk 0:02:19.5]} 13. Kxf2 {[%clk 0:01:45.3]} 13... f6 {[%clk
0:02:20.4]} 14. exf6 {[%clk 0:01:38.3]} 14... gxf6 {[%clk 0:02:21.3]} 15. Bh6
{[%clk 0:01:32.5]} 15... Rf7 {[%clk 0:02:19.7]} 16. c4 {[%clk 0:01:14.8]} 16...
Ne5 {[%clk 0:02:11.3]} 17. Be2 {[%clk 0:00:58.1]} 17... Ng4+ {[%clk 0:02:09.4]}
18. Kg1 {[%clk 0:00:51]} 18... Nxh6 {[%clk 0:02:10.3]} 19. Rd1 {[%clk
0:00:49.3]} 19... Bd7 {[%clk 0:01:52]} 20. Nc5 {[%clk 0:00:40.3]} 20... b6
{[%clk 0:01:40.4]} 21. Nxd7 {[%clk 0:00:24.9]} 21... Rxd7 {[%clk 0:01:41.3]} 22.
Nd4 {[%clk 0:00:19.3]} 22... Re8 {[%clk 0:01:28.2]} 23. Nb5 {[%clk 0:00:14.1]}
23... Kg7 {[%clk 0:01:22.8]} 24. Bf3 {[%clk 0:00:13.2]} 24... a6 {[%clk
0:01:17.3]} 25. Nd4 {[%clk 0:00:10.4]} 25... e5 {[%clk 0:01:16.1]} 26. Nb3
{[%clk 0:00:08.6]} 26... e4 {[%clk 0:01:15.2]} 27. Be2 {[%clk 0:00:08.7]} 27...
Red8 {[%clk 0:01:14]} 28. c5 {[%clk 0:00:07.8]} 28... d4 {[%clk 0:01:09.3]} 29.
Bxa6 {[%clk 0:00:05.9]} 29... bxc5 {[%clk 0:01:06.6]} 30. Nxc5 {[%clk
0:00:04.7]} 30... Re7 {[%clk 0:01:07.5]} 31. Re1 {[%clk 0:00:02.6]} 31... f5
{[%clk 0:01:01.3]} 0-1